bitfinex/quotes_ETHUSD_20250827
["timestamp","ask_amount","ask_price","bid_price","bid_amount"]
[1756291998123,7.73661001,4595.8,4595.7,5.35]
[1756291998324,7.73661001,4595.8,4595.7,1.674]
[1756291998525,7.73661001,4595.8,4595.7,5.35]
[1756292000957,7.73661001,4595.8,4595.7,1.674]
[1756292001165,7.73661001,4595.8,4595.7,5.35]
[1756292001856,7.26441001,4595.8,4595.7,5.35]
[1756292003666,0.02040001,4595.8,4595.7,8.25744708]
[1756292003962,0.02040001,4595.8,4595.7,9.30079312]
[1756292005639,0.02040001,4595.8,4595.7,5.62479312]
[1756292005838,0.02040001,4595.8,4595.7,4.58144708]
[1756292006038,0.02040001,4595.8,4595.7,8.25744708]
[1756292007250,0.02040001,4595.8,4595.7,7.81324708]
[1756292007970,0.02040001,4595.8,4595.7,8.25744708]
[1756292008160,0.02040001,4595.8,4595.7,4.13724708]
[1756292008354,0.02040001,4595.8,4595.7,7.52494708]
[1756292008869,0.02040001,4595.8,4595.7,8.25644708]
[1756292009073,0.02040001,4595.8,4595.7,9.29969312]
[1756292011381,0.02040001,4595.8,4595.7,5.62469312]
[1756292011578,0.02040001,4595.8,4595.7,7.75644708]
[1756292011794,0.02040001,4595.8,4595.7,7.31224708]
[1756292013480,0.02040001,4595.8,4595.7,3.34994708]
[1756292013781,0.02040001,4595.8,4595.7,7.02494708]
[1756292013972,0.02040001,4595.8,4595.7,7.13374708]
[1756292014884,0.02040001,4595.8,4595.7,7.86524708]
[1756292015565,0.02040001,4595.8,4595.7,4.19024708]
[1756292015771,0.01960001,4595.8,4595.7,7.86524708]
[1756292017254,0.01960001,4595.8,4595.7,8.86947312]
[1756292018315,0.01960001,4595.8,4595.7,7.86524708]
[1756292019493,0.01960001,4595.8,4595.7,7.86424708]
[1756292022169,0.01960001,4595.8,4595.7,7.42004708]
[1756292022375,0.01960001,4595.8,4595.7,7.86424708]
[1756292022897,6.99011001,4595.8,4595.7,7.86424708]
[1756292024406,6.99011001,4595.8,4595.7,7.42004708]
[1756292024715,7.27291001,4595.8,4595.7,7.13274708]
[1756292025198,6.99011001,4595.8,4595.7,7.13274708]
[1756292026902,6.99011001,4595.8,4595.7,7.13174708]
[1756292027315,6.99011001,4595.8,4595.7,8.79412312]
[1756292028783,0.01960001,4595.8,4595.7,9.44823412]
[1756292032823,0.01960001,4595.8,4595.7,5.33103412]
[1756292033025,0.01960001,4595.8,4595.7,9.46173412]
[1756292033759,0.01960001,4595.8,4595.7,8.80762312]
[1756292033894,0.01960001,4595.8,4595.7,15.67521305]
[1756292034094,0.01960001,4595.8,4595.7,16.14221305]
[1756292034409,0.01960001,4595.8,4595.7,9.93462312]
[1756292035617,0.01960001,4595.8,4595.7,6.26262312]
[1756292035821,0.01960001,4595.8,4595.7,9.93462312]
[1756292037645,1e-08,4595.8,4595.7,19.14221305]
[1756292039736,1e-08,4595.8,4595.7,15.47021305]
[1756292040085,1e-08,4595.8,4595.7,19.14121305]
[1756292040259,0.02,4597.8,4595.7,19.14121305]
[1756292040260,0.4862,4597.8,4597.7,2.17500054]
[1756292040460,0.4862,4597.8,4597.7,3.95680054]
[1756292040461,0.0192,4597.8,4597.7,3.95680054]
[1756292040636,0.3136,4597.8,4597.7,5.4528]
[1756292040836,0.7651,4597.8,4597.7,7.62780054]
[1756292045755,0.7651,4597.8,4597.7,1.7818]
[1756292045958,0.7651,4597.8,4597.7,5.343]
[1756292046684,0.7651,4597.8,4597.7,1.673]
[1756292047060,0.7651,4597.8,4597.7,5.343]
[1756292047491,0.7651,4597.8,4597.7,1.673]
[1756292047648,0.7651,4597.8,4597.7,5.343]
[1756292047850,0.8739,4597.8,4597.7,5.343]
[1756292048451,0.8739,4597.8,4597.7,1.673]
[1756292049081,0.8739,4597.8,4597.7,5.343]
[1756292049386,0.4224,4597.8,4597.7,5.343]
[1756292049551,0.7651,4597.8,4597.6,3.67]
[1756292049752,2.48855323,4597.8,4597.7,3.67]
[1756292049946,0.3136,4597.8,4597.7,3.67]
[1756292050463,2.94005323,4597.8,4597.7,3.67]
[1756292051192,2.17501418,4597.7,4597.6,0.001]
[1756292051392,2.17501418,4597.7,4597.6,3.671]
[1756292051596,5.92091418,4597.7,4597.6,3.671]
[1756292052127,3.2944,4597.7,4597.6,3.671]
[1756292052391,3.7459,4597.7,4597.6,3.671]
[1756292052748,5.92090054,4597.7,4597.6,0.001]
[1756292052981,5.92090054,4597.7,4597.6,3.67]
[1756292053602,6.44495083,4597.7,4597.6,0.001]
[1756292054298,7.10495083,4597.7,4597.6,0.001]
[1756292054505,2.17537905,4596.9,4596.8,1.673]
[1756292054799,2.17567383,4596.3,4596.1,1.673]
[1756292055003,2.17567383,4596.3,4596.2,2.859]
[1756292055384,2.47007383,4596.3,4596.2,2.859]
[1756292055897,5.92157383,4596.3,4596.2,2.859]
[1756292056254,2.17571036,4596.2,4596.1,1.673]
[1756292056655,2.92161036,4596.2,4596.1,5.342]
[1756292056857,3.0,4596.3,4596.1,5.6537]
[1756292057092,0.4515,4597.0,4596.3,2.17566228]
[1756292057250,0.4515,4597.0,4596.2,2.63440255]
[1756292057453,2.62683584,4597.0,4596.2,2.63440255]
[1756292057657,2.62683584,4597.0,4596.2,0.4587]
[1756292057897,2.1754264,4596.8,4596.1,5.342]
[1756292058104,0.2944,4596.3,4596.1,1.673]
[1756292058257,0.2944,4596.3,4596.2,3.669]
[1756292058458,2.62692935,4596.8,4596.2,3.669]
[1756292058776,0.80745363,4597.3,4596.3,2.17561803]
[1756292058950,0.80745363,4597.3,4596.2,4.1277]
[1756292058951,0.80745363,4597.3,4596.2,6.303402]
[1756292059151,2.17532619,4597.1,4596.3,2.17565422]
[1756292059357,2.51565851,4597.3,4596.2,6.30340279]
[1756292059589,0.1088,4596.6,4596.3,2.17565526]
[1756292059792,0.1088,4596.6,4596.5,0.3117]
[1756292061698,0.1088,4596.6,4596.5,0.7858]
[1756292062759,0.1088,4596.6,4596.5,0.3117]
[1756292064599,0.108,4596.6,4596.5,3.9807]
[1756292068514,0.108,4596.6,4596.5,6.63036836]
[1756292069083,6.97051,4597.2,4596.6,2.17550279]
[1756292069435,6.97051,4597.2,4596.5,4.4548]
[1756292069436,0.1088,4597.1,4596.7,0.4741]
[1756292069582,0.1088,4597.1,4596.8,3.669]
[1756292070082,0.1088,4597.1,4596.7,0.4741]
[1756292070285,0.1088,4597.1,4596.8,3.669]
[1756292070589,0.1088,4597.1,4596.9,3.669]
[1756292070788,0.1088,4597.1,4597.0,3.669]
[1756292071435,0.404,4597.1,4597.0,3.669]
[1756292072318,13.00039441,4597.1,4597.0,5.342]
[1756292072852,13.00039441,4597.1,4597.0,1.673]
[1756292073151,13.00039441,4597.1,4597.0,5.342]
[1756292073348,10.82511,4597.1,4596.1,0.001]
[1756292073637,2.28451036,4596.2,4596.1,0.001]
[1756292073840,12.25502036,4596.2,4596.1,3.669]
[1756292074005,13.00092036,4596.2,4596.1,3.669]
[1756292074205,13.00092036,4596.2,4596.1,0.001]
[1756292074522,13.00092036,4596.2,4596.1,3.669]
[1756292074706,12.56192036,4596.2,4596.1,3.669]
[1756292075444,13.00092036,4596.2,4596.1,3.669]
[1756292076244,12.56192036,4596.2,4596.1,3.669]
[1756292076939,10.07931,4596.2,4596.1,4.4311]
[1756292077140,10.07931,4596.2,4596.1,6.6068577]
[1756292077141,6.97051,4596.2,4596.1,6.6068577]
[1756292077305,6.97051,4596.2,4596.1,6.7156577]
[1756292077649,6.97051,4596.2,4596.1,7.77410823]
[1756292078138,6.97051,4596.2,4596.1,7.66530823]
[1756292078342,6.97051,4596.2,4596.1,7.77410823]
[1756292081110,6.97051,4596.2,4596.1,8.42824723]
[1756292081706,6.97051,4596.2,4596.1,0.763939]
[1756292081912,7.26571,4596.2,4596.1,0.001]
[1756292082338,7.26571,4596.2,4596.1,3.669]
[1756292084413,7.26571,4596.2,4596.1,0.001]
[1756292084729,7.82511,4596.2,4596.1,3.669]
[1756292084927,10.82511,4596.2,4596.1,3.669]
[1756292086620,10.82511,4596.2,4596.1,0.001]
[1756292086837,10.37451,4596.2,4596.1,3.669]
[1756292087034,10.37451,4596.2,4596.1,0.001]
[1756292087234,10.37451,4596.2,4596.1,3.669]
[1756292087943,13.00082036,4596.2,4596.1,3.669]
[1756292088144,10.82511,4596.2,4596.1,3.669]
[1756292088313,13.00082036,4596.2,4596.1,3.669]
[1756292088943,10.07931,4596.2,4596.1,3.957]
[1756292089146,9.97051,4596.2,4596.1,4.4311]
[1756292089443,9.97051,4596.2,4596.1,6.6068577]
[1756292089444,9.96971,4596.2,4596.1,6.6068577]
[1756292090120,6.96971,4596.2,4596.1,3.957]
[1756292090317,6.96971,4596.2,4596.1,3.669]
[1756292090717,6.96971,4596.2,4596.1,0.001]
[1756292090921,6.96971,4596.2,4596.1,3.669]
[1756292091127,6.96971,4596.2,4596.1,3.9608]
[1756292092517,10.25931,4596.2,4596.1,3.668]
[1756292092716,12.89112036,4596.2,4596.1,3.668]
[1756292093223,10.25931,4596.2,4596.1,3.668]
[1756292093425,6.96971,4596.2,4596.1,4.4111]
[1756292095662,6.96971,4596.2,4596.1,0.001]
[1756292095976,10.71541,4596.2,4596.1,3.309]
[1756292096175,12.89112036,4596.2,4596.1,3.668]
[1756292096862,12.43502036,4596.2,4596.1,3.668]
[1756292097067,9.96971,4596.2,4596.1,3.668]
[1756292097642,12.14542036,4596.2,4596.1,3.668]
[1756292097946,12.43672036,4596.2,4596.1,3.668]
[1756292099262,12.43672036,4596.2,4596.1,0.001]
[1756292099462,12.89122036,4596.2,4596.1,3.668]
[1756292099788,9.43672036,4596.2,4596.1,3.668]
[1756292099966,9.43672036,4596.2,4596.1,0.001]
[1756292100184,9.43672036,4596.2,4596.1,3.668]
[1756292100467,16.09881029,4596.2,4596.1,3.668]
[1756292100639,16.09881029,4596.2,4596.1,0.001]
[1756292100840,16.09881029,4596.2,4596.1,3.66]
[1756292101039,15.35301029,4596.2,4596.1,3.66]
[1756292101241,6.96971,4596.2,4596.1,3.9518]
[1756292101446,6.96971,4596.2,4596.1,3.9598]
[1756292101983,7.07851,4596.2,4596.1,4.4111]
[1756292102575,7.07851,4596.2,4596.1,0.001]
[1756292102576,9.54382036,4596.2,4596.1,0.001]
[1756292102950,9.99992036,4596.2,4596.1,3.215]
[1756292103263,9.54382036,4596.2,4596.1,3.215]
[1756292103460,9.54382036,4596.2,4596.1,0.001]
[1756292103660,9.99992036,4596.2,4596.1,3.668]
[1756292104538,9.99992036,4596.2,4596.1,0.001]
[1756292104744,9.99992036,4596.2,4596.1,3.668]
[1756292106650,9.99992036,4596.2,4596.1,0.001]
[1756292106948,9.99992036,4596.2,4596.1,3.668]
[1756292107659,7.82421,4596.2,4596.1,3.668]
[1756292107989,7.07851,4596.2,4596.1,4.4111]
[1756292108283,7.07851,4596.2,4596.1,6.5868577]
[1756292108447,7.08051,4596.2,4596.1,6.5868577]
[1756292108657,7.08051,4596.2,4596.1,4.4111]
[1756292108892,7.08051,4596.2,4596.1,6.5868577]
[1756292109896,6.97171,4596.2,4596.1,6.5868577]
[1756292110095,6.97171,4596.2,4596.1,7.74122688]
[1756292110590,6.97171,4596.2,4596.1,7.28992688]
[1756292110795,6.97171,4596.2,4596.1,6.6956577]
[1756292112893,6.97171,4596.2,4596.1,0.4016]
[1756292113067,6.97171,4596.2,4596.1,3.9598]
[1756292113789,6.97091,4596.2,4596.1,3.9598]
[1756292114093,6.97091,4596.2,4596.1,4.4111]
[1756292114263,6.97091,4596.2,4596.1,0.7441]
[1756292114462,6.97091,4596.2,4596.1,2.9198577]
[1756292114866,6.97091,4596.2,4596.1,6.5858577]
[1756292115491,6.97091,4596.2,4596.1,0.2928]
[1756292115660,6.97091,4596.2,4596.1,6.5858577]
[1756292116590,6.97091,4596.2,4596.1,4.4101]
[1756292116770,6.97091,4596.2,4596.1,6.5858577]
[1756292116970,6.97091,4596.2,4596.1,2.9198577]
[1756292117172,6.97091,4596.2,4596.1,6.5858577]
[1756292117786,6.97091,4596.2,4596.1,4.4101]
[1756292118308,6.97091,4596.2,4596.1,6.5858577]
[1756292119216,6.97091,4596.2,4596.1,7.70763011]
[1756292119419,6.97091,4596.2,4596.1,7.81643011]
[1756292119976,6.97091,4596.2,4596.1,8.47056211]
[1756292126483,6.97091,4596.2,4596.1,8.46956211]
[1756292128577,6.97091,4596.2,4596.1,4.80456211]
[1756292128777,6.97091,4596.2,4596.1,8.46956211]
[1756292132730,6.97091,4596.2,4596.1,4.80456211]
[1756292133028,6.97091,4596.2,4596.1,8.46956211]
[1756292134395,6.97091,4596.2,4596.1,4.80456211]
[1756292134622,6.97091,4596.2,4596.1,8.46956211]
[1756292134837,6.97091,4596.2,4596.1,0.763932]
[1756292134838,7.26331,4596.2,4596.1,0.763932]
[1756292135022,7.71411,4596.2,4596.1,3.665]
[1756292135198,7.71411,4596.2,4596.1,0.001]
[1756292135403,9.88982036,4596.2,4596.1,3.665]
[1756292135735,7.71411,4596.2,4596.1,3.665]
[1756292136230,9.88982036,4596.2,4596.1,0.001]
[1756292136528,9.88982036,4596.2,4596.1,3.665]
[1756292138121,9.88902036,4596.2,4596.1,3.665]
[1756292138929,9.88902036,4596.2,4596.1,0.001]
[1756292139130,9.88902036,4596.2,4596.1,3.665]
[1756292141756,9.88902036,4596.2,4596.1,0.001]
[1756292141757,12.88902036,4596.2,4596.1,0.001]
[1756292142044,5.17578517,4596.1,4595.8,0.02]
[1756292142199,11.38344232,4595.9,4595.8,0.02]
[1756292142396,11.67584232,4595.9,4595.8,0.02]
[1756292142600,12.43907632,4595.9,4595.8,0.02]
[1756292142839,12.88987632,4595.9,4595.8,0.02]
[1756292144326,19.85798632,4595.9,4595.8,0.02]
[1756292144527,20.51798632,4595.9,4595.8,0.02]
[1756292145538,20.51798632,4595.9,4595.8,0.021]
[1756292148344,5.83594708,4595.7,4595.6,0.001]
[1756292148545,0.1088,4595.7,4595.6,0.001]
[1756292148856,0.1088,4595.7,4595.6,0.7467]
[1756292149346,7.07691,4595.9,4595.6,0.7467]
[1756292149549,7.07691,4595.9,4595.7,0.4597]
[1756292149718,7.07691,4595.9,4595.8,0.286]
[1756292149918,7.07691,4595.9,4595.8,0.7181]
[1756292152821,9.25276239,4595.9,4595.8,0.7181]
[1756292153650,7.07691,4595.9,4595.8,0.7181]
[1756292155052,7.07691,4595.9,4595.8,4.3821]
[1756292160354,9.25276239,4595.9,4595.8,3.95]
[1756292160558,7.07691,4595.9,4595.8,3.95]
[1756292160859,7.07691,4595.9,4595.8,4.3821]
[1756292161955,7.07691,4595.9,4595.8,4.3811]
[1756292162388,0.002,4596.2,4595.8,4.92811]
[1756292162654,0.0012,4596.2,4596.1,2.1757577]
[1756292162824,0.0012,4596.2,4596.1,2.2845577]
[1756292163022,0.0012,4596.2,4596.1,6.6824577]
[1756292163225,0.0012,4596.2,4596.1,7.61220971]
[1756292163859,0.0012,4596.2,4596.1,0.4116]
[1756292164064,2.57581036,4596.2,4596.1,3.663]
[1756292164361,2.17580504,4596.0,4595.8,0.001]
[1756292164560,8.49224232,4595.9,4595.8,3.07]
[1756292164729,19.20615232,4595.9,4595.8,3.07]
[1756292164928,19.20615232,4595.9,4595.8,0.001]
[1756292167670,19.20615232,4595.9,4595.6,0.001]
[1756292167671,2.17594708,4595.7,4595.6,0.001]
[1756292167964,5.83594708,4595.7,4595.6,0.001]
[1756292168165,6.12934708,4595.7,4595.6,0.001]
[1756292168353,10.24474708,4595.7,4595.6,0.001]
[1756292168548,17.21285708,4595.7,4595.6,0.001]
[1756292170370,2.83608913,4595.4,4595.1,0.001]
[1756292170580,22.78358906,4595.4,4595.1,0.001]
[1756292170790,23.52938906,4595.4,4595.1,0.001]
[1756292171082,23.86996184,4595.4,4595.1,0.001]
[1756292172981,23.41916184,4595.4,4595.1,0.001]
[1756292173155,22.75916184,4595.4,4595.1,0.001]
[1756292173555,22.84642984,4595.4,4595.1,0.001]
[1756292174384,23.29722984,4595.4,4595.1,0.001]
[1756292176953,23.95722984,4595.4,4595.1,0.001]
[1756292179282,23.86996184,4595.4,4595.1,0.001]
[1756292180378,5.17632592,4594.9,4594.8,0.021]
[1756292180580,8.75323592,4594.9,4594.8,0.021]
[1756292180780,9.15893592,4594.9,4594.8,0.021]
[1756292181084,5.83653556,4594.9,4594.8,0.021]
[1756292182861,12.04412549,4594.9,4594.8,0.021]
[1756292183981,13.15312549,4594.9,4594.8,0.021]
[1756292185091,12.70412549,4594.9,4594.8,0.021]
[1756292185387,13.15312549,4594.9,4594.8,1e-08]
[1756292185890,13.24041649,4594.9,4594.8,1e-08]
[1756292186385,12.79141649,4594.9,4594.8,1e-08]
[1756292187173,12.79061649,4594.9,4594.8,1e-08]
[1756292188491,9.13886227,4594.0,4593.9,0.4301]
[1756292188667,12.13886227,4594.0,4593.9,0.4301]
[1756292188873,12.36317887,4594.0,4593.9,0.7248]
[1756292189073,12.24766227,4594.0,4593.9,0.7248]
[1756292194595,7.07090999,4594.0,4593.9,0.7248]
[1756292194799,6.96210999,4594.0,4593.9,2.3988]
[1756292195098,6.96210999,4594.0,4593.9,4.81757966]
[1756292196597,6.96210999,4594.0,4593.9,8.48057966]
[1756292201205,6.96210999,4594.0,4593.9,6.30378]
[1756292201501,6.96210999,4594.0,4593.9,8.48057966]
[1756292201998,6.96210999,4594.0,4593.9,8.58937966]
[1756292206374,6.96210999,4594.0,4593.9,8.58837966]
[1756292207301,6.96210999,4594.0,4593.9,4.92637966]
[1756292207506,6.96210999,4594.0,4593.9,8.58737966]
[1756292208516,6.96210999,4594.0,4593.9,8.15727966]
[1756292208704,6.96210999,4594.0,4593.9,8.58737966]
[1756292209714,6.96210999,4594.0,4593.9,6.1686]
[1756292209916,6.96210999,4594.0,4593.9,5.7385]
[1756292210276,6.96210999,4594.0,4593.9,5.6297]
[1756292211010,7.26880999,4594.0,4593.9,5.335]
[1756292211611,6.96130999,4594.0,4593.9,5.335]
[1756292211785,6.96130999,4594.0,4593.9,5.6431]
[1756292211980,6.96130999,4594.0,4593.9,6.0892]
[1756292213792,6.96130999,4594.0,4593.9,5.335]
[1756292216284,7.26800999,4594.0,4593.9,1.674]
[1756292216517,7.26800999,4594.0,4593.9,5.335]
[1756292217377,6.96130999,4594.0,4593.9,5.335]
[1756292219032,6.96130999,4594.0,4593.9,5.6431]
[1756292219632,7.26800999,4594.0,4593.9,5.335]
[1756292220230,7.26800999,4594.0,4593.9,5.334]
[1756292220428,7.26800999,4594.0,4593.9,1.674]
[1756292220630,9.98666227,4594.0,4593.9,5.334]
[1756292220836,7.37680999,4594.0,4593.9,5.334]
[1756292221302,9.98666227,4594.0,4593.9,5.334]
[1756292222504,7.80990999,4594.0,4593.9,5.334]
[1756292223112,9.98666227,4594.0,4593.9,5.334]
[1756292223430,7.37680999,4594.0,4593.9,5.334]
[1756292223620,9.55356227,4594.0,4593.9,5.334]
[1756292224629,7.37680999,4594.0,4593.9,5.334]
[1756292225935,9.55356227,4594.0,4593.9,5.334]
[1756292226931,7.07010999,4594.0,4593.9,5.6421]
[1756292227130,0.002,4594.2,4593.9,6.65461]
[1756292227332,0.002,4594.2,4594.0,2.62285228]
[1756292227497,0.002,4594.2,4594.1,5.8367049]
[1756292227702,0.002,4594.2,4594.1,6.5909049]
[1756292230610,0.002,4594.2,4594.1,2.4848049]
[1756292230816,0.002,4594.2,4594.1,6.5909049]
[1756292232339,0.002,4594.2,4594.1,7.70469481]
[1756292233720,0.002,4594.2,4594.1,10.70469481]
[1756292235160,0.002,4594.2,4594.1,4.04469481]
[1756292235334,0.002,4594.2,4594.1,7.70369481]
[1756292235535,0.002,4594.2,4594.1,4.04469481]
[1756292235753,0.002,4594.2,4594.1,6.1438049]
[1756292235950,0.002,4594.2,4594.1,6.5899049]
[1756292236151,0.0012,4594.2,4594.1,6.1438049]
[1756292236537,0.0012,4594.2,4594.1,6.5899049]
[1756292236936,0.0012,4594.2,4594.1,6.1438049]
[1756292237136,0.0012,4594.2,4594.1,5.8357049]
[1756292237336,0.0012,4594.2,4594.1,6.1438049]
[1756292237558,0.0012,4594.2,4594.1,7.60234473]
[1756292238548,0.0012,4594.2,4594.1,7.15624473]
[1756292238852,0.0012,4594.2,4594.1,2.4848049]
[1756292239056,0.0012,4594.2,4594.1,6.1438049]
[1756292239738,0.0012,4594.2,4594.1,6.5899049]
[1756292241271,0.0012,4594.2,4594.1,2.9309049]
[1756292241472,0.0012,4594.2,4594.1,6.5889049]
[1756292241852,0.0012,4594.2,4594.1,6.1428049]
[1756292242056,0.0012,4594.2,4594.1,2.4848049]
[1756292242256,0.0012,4594.2,4594.1,6.1428049]
[1756292243284,0.0012,4594.2,4594.1,2.4848049]
[1756292243472,0.0012,4594.2,4594.1,6.1428049]
[1756292244076,0.0012,4594.2,4594.1,6.5872049]
[1756292244287,0.0012,4594.2,4594.1,7.61305663]
[1756292244678,0.00020725,4594.2,4594.1,7.61305663]
[1756292245983,0.00020725,4594.2,4594.1,3.95505663]
[1756292246284,0.00020725,4594.2,4594.1,7.16865663]
[1756292246488,0.00020725,4594.2,4594.1,6.1428049]
[1756292246986,0.00020725,4594.2,4594.1,5.8347049]
[1756292247373,0.00020725,4594.2,4594.1,6.5930049]
[1756292250079,0.00020725,4594.2,4594.1,6.5920049]
[1756292250785,0.00020725,4594.2,4594.1,7.64926473]
[1756292252105,0.00020725,4594.2,4594.1,7.65026473]
[1756292253470,0.00020725,4594.2,4594.1,3.99326473]
[1756292253790,0.00020725,4594.2,4594.1,3.54886473]
[1756292253974,0.00020725,4594.2,4594.1,7.20586473]
[1756292254378,0.00020725,4594.2,4594.1,2.1777049]
[1756292254566,0.00020725,4594.2,4594.1,6.1486049]
[1756292254770,0.00020725,4594.2,4594.1,6.5930049]
[1756292255522,0.28390725,4594.2,4594.1,5.8347049]
[1756292255670,0.28390725,4594.2,4594.1,0.001]
[1756292255876,0.28390725,4594.2,4594.1,3.658]
[1756292256083,0.74590725,4594.2,4594.1,0.001]
[1756292256297,3.03136477,4594.2,4594.1,3.658]
[1756292257695,9.2389547,4594.2,4594.1,0.001]
[1756292258088,12.2389547,4594.2,4594.1,0.001]
[1756292260310,12.8989547,4594.2,4594.1,0.001]
[1756292260498,12.8981547,4594.2,4594.1,0.001]
[1756292261015,16.5551547,4594.2,4594.1,0.001]
[1756292261177,16.5551547,4594.2,4593.8,0.021]
[1756292261178,5.83679966,4593.9,4593.8,0.021]
[1756292261495,5.94559966,4593.9,4593.8,0.021]
[1756292261707,6.69029966,4593.9,4593.8,0.021]
[1756292261909,7.11832173,4593.9,4593.8,0.021]
[1756292262495,8.79232173,4593.9,4593.8,0.021]
[1756292264224,12.44932173,4593.9,4593.8,0.021]
[1756292265250,5.83684705,4593.8,4593.7,0.001]
[1756292265755,5.17689444,4593.7,4593.6,0.001]
[1756292265923,11.38448437,4593.7,4593.6,0.001]
[1756292266128,12.12918437,4593.7,4593.6,0.001]
[1756292266645,12.21649737,4593.7,4593.6,1e-08]
[1756292268147,12.55724212,4593.7,4593.6,1e-08]
[1756292268968,16.21424212,4593.7,4593.6,1e-08]
[1756292270642,16.21624212,4593.7,4593.6,1e-08]
[1756292270968,2.83713141,4593.2,4591.9,0.469]
[1756292271171,5.17751066,4592.4,4591.5,0.469]
[1756292271336,2.28654777,4591.9,4591.5,0.469]
[1756292271530,9.22585776,4591.9,4591.5,0.469]
[1756292271791,9.22585776,4591.9,4591.8,0.7957]
[1756292272283,7.04810999,4591.9,4591.8,0.7957]
[1756292274555,9.22585776,4591.9,4591.8,0.7957]
[1756292274884,9.22585776,4591.9,4591.8,0.3267]
[1756292275084,9.44820907,4591.9,4591.8,0.02]
[1756292275312,9.22585776,4591.9,4591.8,0.02]
[1756292275490,9.22585776,4591.9,4591.8,0.7957]
[1756292275491,7.04810999,4591.9,4591.8,0.7957]
[1756292275988,9.22585776,4591.9,4591.8,0.7957]
[1756292278419,9.22585776,4591.9,4591.8,0.3267]
[1756292278608,9.22585776,4591.9,4591.8,0.7957]
[1756292279681,9.22585776,4591.9,4591.8,0.02]
[1756292280517,9.22585776,4591.9,4591.8,0.3267]
[1756292280719,9.22585776,4591.9,4591.8,0.7957]
[1756292281215,9.22585776,4591.9,4591.8,0.02]
[1756292281918,13.17485776,4591.9,4591.8,0.02]
[1756292282333,19.38244769,4591.9,4591.8,0.02]
[1756292282628,15.88285776,4591.9,4591.8,0.02]
[1756292283213,15.88285776,4591.9,4591.8,0.3267]
[1756292283402,15.88285776,4591.9,4591.8,0.7957]
[1756292284211,15.88285776,4591.9,4591.8,0.3267]
[1756292285006,12.22505776,4591.9,4591.8,0.3267]
[1756292286107,12.22505776,4591.9,4591.8,0.02]
[1756292286508,12.51705776,4591.9,4591.8,0.02]
[1756292289039,12.22505776,4591.9,4591.8,0.021]
[1756292290037,12.22505776,4591.9,4591.8,0.3277]
[1756292290243,15.88205776,4591.9,4591.8,0.7967]
[1756292292056,12.22505776,4591.9,4591.8,0.7967]
[1756292294628,12.22505776,4591.9,4591.8,0.3277]
[1756292299562,12.22505776,4591.9,4591.8,0.7967]
[1756292299728,12.69405776,4591.9,4591.8,0.7967]
[1756292301368,12.69405776,4591.9,4591.8,0.3277]
[1756292301759,12.69405776,4591.9,4591.8,0.021]
[1756292302270,12.69405776,4591.9,4591.8,0.3297]
[1756292302668,12.69405776,4591.9,4591.8,0.776]
[1756292303173,12.69405776,4591.9,4591.8,0.3297]
[1756292305645,12.69405776,4591.9,4591.8,0.021]
[1756292305847,16.64845776,4591.9,4591.8,0.021]
[1756292309579,16.35125776,4591.9,4591.8,0.021]
[1756292309772,9.41194777,4591.9,4591.8,0.021]
[1756292309975,5.75594777,4591.9,4591.8,0.776]
[1756292311892,5.75594777,4591.9,4591.8,0.3297]
[1756292315882,5.75594777,4591.9,4591.8,0.021]
[1756292316878,6.05234777,4591.9,4591.8,0.021]
[1756292324734,19.19924769,4591.9,4591.8,0.021]
[1756292325908,19.62974769,4591.9,4591.8,0.021]
[1756292326631,19.19924769,4591.9,4591.8,0.021]
[1756292329858,12.99165776,4591.9,4591.8,0.021]
[1756292331643,12.99325776,4591.9,4591.8,0.021]
[1756292334161,12.99245776,4591.9,4591.8,0.021]
[1756292338350,13.43915776,4591.9,4591.8,0.021]
[1756292338955,12.99245776,4591.9,4591.8,0.021]
[1756292339279,12.69445776,4591.9,4591.8,0.021]
[1756292340251,12.99385776,4591.9,4591.8,0.021]
[1756292342362,12.99385776,4591.9,4591.3,0.4652]
[1756292342363,3.0,4591.6,4591.3,0.4652]
[1756292342680,2.28678492,4591.4,4591.3,0.4652]
[1756292342983,5.28678492,4591.4,4591.3,0.001]
[1756292343286,5.28678492,4591.4,4591.3,0.2974]
[1756292343472,5.37412092,4591.4,4591.3,0.7616]
[1756292345484,5.37412092,4591.4,4591.3,0.2974]
[1756292346488,5.37412092,4591.4,4591.3,0.7616]
[1756292346682,5.37412092,4591.4,4591.3,0.001]
[1756292347489,5.37412092,4591.4,4591.3,0.7616]
[1756292348154,12.29243091,4591.4,4591.3,0.7616]
[1756292349096,12.29243091,4591.4,4591.3,0.2974]
[1756292349282,12.29243091,4591.4,4591.3,0.001]
[1756292349497,12.58083091,4591.4,4591.3,0.001]
[1756292349696,13.03703091,4591.4,4591.3,0.001]
[1756292351018,13.24083091,4591.4,4591.3,0.001]
[1756292351387,13.69703091,4591.4,4591.3,0.001]
[1756292352471,13.24083091,4591.4,4591.3,0.001]
[1756292352916,13.69703091,4591.4,4591.3,0.001]
[1756292353780,13.24083091,4591.4,4591.3,0.001]
[1756292355481,12.95243091,4591.4,4591.3,0.001]
[1756292355705,12.95243091,4591.4,4591.3,0.2974]
[1756292355911,12.95243091,4591.4,4591.3,0.7616]
[1756292356111,12.95243091,4591.4,4591.3,0.2974]
[1756292356307,13.24083091,4591.4,4591.3,0.001]
[1756292357719,13.69703091,4591.4,4591.3,0.001]
[1756292358530,13.24003091,4591.4,4591.3,0.001]
[1756292363033,5.17812724,4591.1,4591.0,0.001]
[1756292363221,8.82912724,4591.1,4591.0,0.001]
[1756292363422,8.93792724,4591.1,4591.0,0.3027]
[1756292363728,9.42312724,4591.1,4591.0,0.3027]
[1756292363928,9.42312724,4591.1,4591.0,0.7568]